bitfinex-derivatives/quotes_SOLF0:USTF0_20260121
["timestamp","ask_amount","ask_price","bid_price","bid_amount"]
[1769002671196,3.25073342,127.25,127.19,1.58388577]
[1769002671893,3.25073342,127.24,127.18,7.0837]
[1769002672593,3.25073342,127.24,127.2,0.05008767]
[1769002672799,10.33143342,127.24,127.2,0.05008767]
[1769002674195,0.05578512,127.23,127.2,0.05008767]
[1769002679194,7.08,127.26,127.2,0.05008767]
[1769002680193,10.35247568,127.26,127.2,0.05008767]
[1769002680390,0.06023504,127.24,127.2,0.05008767]
[1769002680894,0.06023504,127.24,127.2,7.13278767]
[1769002682001,3.33271072,127.24,127.2,0.05008767]
[1769002682602,10.41351072,127.24,127.2,0.05008767]
[1769002682803,3.27247568,127.23,127.18,7.0839]
[1769002683705,3.27247568,127.22,127.16,7.0848]
[1769002684008,3.27247568,127.22,127.19,0.05869642]
[1769002684307,0.05493412,127.2,127.16,7.0848]
[1769002684816,0.05493412,127.2,127.17,7.0845]
[1769002685408,0.05493412,127.2,127.17,7.14117042]
[1769002687210,3.27247568,127.24,127.18,7.0839]
[1769002688307,10.35307568,127.25,127.2,0.05071738]
[1769002688610,0.05385524,127.22,127.2,0.05071738]
[1769002689003,0.05385524,127.22,127.16,1.58388577]
[1769002689908,0.05385524,127.22,127.17,7.0845]
[1769002690701,0.05385524,127.22,127.18,0.04979685]
[1769002697315,3.34960751,127.22,127.18,0.04979685]
[1769002699825,3.29575227,127.21,127.15,14.39858208]
[1769002701003,0.05673784,127.19,127.16,7.085]
[1769002705020,3.29575227,127.21,127.16,7.085]
[1769002706017,3.29575227,127.21,127.14,15.98246785]
[1769002706018,3.29575227,127.2,127.15,7.0856]
[1769002706217,3.34758097,127.2,127.17,0.05946887]
[1769002706413,10.43048097,127.2,127.14,15.98246785]
[1769002706618,10.43048097,127.2,127.14,1.58388577]
[1769002707621,10.43048097,127.2,127.14,8.66958577]
[1769002708417,3.34758097,127.2,127.15,7.0856]
[1769002708617,3.29575227,127.23,127.16,1.63706093]
[1769002708817,3.29575227,127.23,127.17,14.39858208]
[1769002709119,3.29575227,127.23,127.17,21.48308208]
[1769002710014,0.0599574,127.21,127.19,0.05999258]
[1769002712526,0.0599574,127.21,127.16,14.39858208]
[1769002712722,0.0599574,127.21,127.15,14.39858208]
[1769002713020,3.29575227,127.21,127.14,15.98246785]
[1769002713217,3.29575227,127.21,127.15,7.0856]
[1769002713818,0.05517536,127.19,127.15,7.0856]
[1769002714122,3.29575227,127.23,127.14,15.98246785]
[1769002714310,3.29575227,127.23,127.15,14.39858208]
[1769002715327,0.05097738,127.2,127.15,14.39858208]
[1769002716025,0.05097738,127.2,127.16,7.0851]
[1769002716626,0.05097738,127.2,127.14,15.98246785]
[1769002717320,0.05097738,127.2,127.15,7.0855]
[1769002717524,3.34672965,127.2,127.13,14.39858208]
[1769002717720,3.29575227,127.2,127.13,14.39858208]
[1769002717921,0.05981337,127.18,127.13,14.39858208]
[1769002718427,0.05981337,127.18,127.14,7.0862]
[1769002725623,0.05981337,127.18,127.12,15.98246785]
[1769002725825,3.18961216,127.17,127.11,14.39858208]
[1769002726028,3.18961216,127.17,127.1,14.39858208]
[1769002726233,3.23985092,127.15,127.09,14.39858208]
[1769002726428,3.23985092,127.15,127.08,297.38]
[1769002727528,10.32565092,127.15,127.1,0.05080732]
[1769002728129,3.23985092,127.15,127.1,7.13910732]
[1769002733039,3.23985092,127.15,127.11,7.0879]
[1769002733741,0.05023876,127.15,127.11,7.0879]
[1769002734438,0.05023876,127.15,127.1,7.13920732]
[1769002734940,4.825537,127.15,127.1,0.05080732]
[1769002735133,3.18961216,127.14,127.1,0.05080732]
[1769002737137,0.05023876,127.15,127.1,7.13910732]
[1769002738640,0.05023876,127.15,127.11,7.0876]
[1769002740332,0.05023876,127.15,127.1,1.6364934]
[1769002740538,12.0606906,127.19,127.1,111.8987934]
[1769002740844,12.0606906,127.19,127.1,111.84798608]
[1769002741642,0.05988859,127.16,127.13,0.05342723]
[1769002741843,12.0606906,127.19,127.13,0.05342723]
[1769002742144,10.47500452,127.19,127.13,7.14002723]
[1769002744647,0.06025478,127.17,127.13,7.14002723]
[1769002745450,0.06025478,127.17,127.14,7.0861]
[1769002745746,3.39100452,127.19,127.14,7.0861]
[1769002747650,3.44695793,127.18,127.13,7.14012723]
[1769002752854,10.53105793,127.18,127.13,0.05342723]
[1769002753050,3.39100452,127.16,127.11,7.0875]
[1769002753350,3.39100452,127.16,127.09,110.2732]
[1769002754157,3.39100452,127.16,127.11,0.05256464]
[1769002757053,3.39100452,127.16,127.11,7.14046464]
[1769002757661,0.0599479,127.15,127.11,7.14046464]
[1769002760460,3.4610578,127.14,127.08,9.77657924]
[1769002760959,3.4610578,127.14,127.09,7.0889]
[1769002761660,0.05197867,127.13,127.09,7.0889]
[1769002765062,0.05197867,127.13,127.1,7.0884]
[1769002766368,0.05197867,127.13,127.09,9.77657924]
[1769002766663,0.05197867,127.13,127.08,18.45126532]
[1769002767165,0.05197867,127.13,127.09,7.0888]
[1769002768568,0.05197867,127.13,127.09,16.86537924]
[1769002770871,0.05197867,127.13,127.1,0.05773616]
[1769002772969,10.5459578,127.17,127.1,1.64342224]
[1769002773179,3.4610578,127.16,127.1,1.64342224]
[1769002773670,3.4610578,127.16,127.1,1.58568608]
[1769002774070,3.4610578,127.16,127.12,0.04970459]
[1769002774366,10.5461578,127.16,127.12,0.04970459]
[1769002774566,3.4610578,127.16,127.12,0.04970459]
[1769002777869,3.4610578,127.18,127.12,7.13680459]
[1769002778263,3.4610578,127.18,127.12,8.72249067]
[1769002778662,0.05530728,127.16,127.12,8.72249067]
[1769002778858,0.05530728,127.16,127.13,7.0866]
[1769002779061,1.58568608,127.21,127.13,7.0866]
[1769002779269,10.5439578,127.2,127.12,11.41196991]
[1769002779570,10.5439578,127.2,127.12,1.58568608]
[1769002780171,10.5439578,127.2,127.15,0.05011633]
[1769002780575,0.05377457,127.19,127.15,0.05011633]
[1769002780765,3.4610578,127.18,127.12,8.67248608]
[1769002781073,3.4610578,127.18,127.12,11.39216731]
[1769002781865,3.4610578,127.18,127.13,7.0867]
[1769002782064,3.4610578,127.18,127.14,0.05411464]
[1769002784177,3.4610578,127.18,127.14,7.14001464]
[1769002784377,10.5439578,127.2,127.14,7.14001464]
[1769002784578,3.4610578,127.19,127.14,7.14001464]
[1769002789275,0.05971018,127.18,127.14,7.14001464]
[1769002796585,0.05971018,127.18,127.15,7.0855]
[1769002797395,10.24434309,127.23,127.16,1.58471053]
[1769002798575,10.24434309,127.23,127.18,0.05679028]
[1769002798786,3.25638933,127.22,127.18,0.05679028]
[1769002799780,0.05309364,127.21,127.18,0.05679028]
[1769002799988,3.25638933,127.24,127.18,1.64150081]
[1769002800590,3.25638933,127.24,127.19,7.0832]
[1769002800793,3.25638933,127.24,127.18,1.64150081]
[1769002801894,3.25638933,127.24,127.18,8.72520081]
[1769002802092,10.33698933,127.24,127.18,7.14049028]
[1769002802494,3.25638933,127.23,127.18,7.14049028]
[1769002802792,0.05650548,127.22,127.18,0.05679028]
[1769002803493,0.05650548,127.22,127.18,7.14079028]
[1769002806399,0.05650548,127.22,127.18,0.05679028]
[1769002807399,0.05650548,127.22,127.18,1.64150081]
[1769002807993,0.05650548,127.22,127.18,8.72540081]
[1769002810398,10.33658933,127.25,127.18,8.72540081]
[1769002812293,3.25638933,127.24,127.18,8.72540081]
[1769002812492,3.25638933,127.24,127.19,7.0834]
[1769002812695,3.25638933,127.24,127.18,1.64150081]
[1769002813003,7.0794,127.27,127.2,7.0828]
[1769002813196,7.0794,127.27,127.18,1.64150081]
[1769002813197,3.25638933,127.26,127.18,110.24969028]
[1769002813396,10.33478933,127.28,127.2,1.58471053]
[1769002813602,3.25638933,127.27,127.21,0.05233162]
[1769002814802,10.33538933,127.27,127.21,0.05233162]
[1769002815296,3.25638933,127.26,127.21,0.05233162]
[1769002817302,10.33628933,127.26,127.21,0.05233162]
[1769002820509,3.42975125,127.25,127.21,0.05233162]
[1769002823408,0.05706951,127.24,127.21,0.05233162]
[1769002824312,3.48682076,127.24,127.21,0.05233162]
[1769002824609,3.48682076,127.24,127.18,7.0834]
[1769002825214,3.48682076,127.24,127.19,8.66781053]
[1769002825609,3.42975125,127.24,127.2,0.05516216]
[1769002825816,3.42975125,127.26,127.2,7.13796216]
[1769002826314,3.42975125,127.26,127.21,1.58471053]
[1769002826616,10.50935125,127.26,127.2,7.0828]
[1769002827217,10.50935125,127.26,127.22,0.05516714]
[1769002827612,3.42975125,127.26,127.22,0.05516714]
[1769002827820,10.50855125,127.28,127.22,0.05516714]
[1769002828018,3.42975125,127.27,127.22,0.05516714]
[1769002828912,3.42975125,127.27,127.22,7.13686714]
[1769002830916,3.42975125,127.27,127.23,7.0812]
[1769002831313,3.42975125,127.27,127.22,1.63987767]
[1769002832522,10.50875125,127.27,127.22,1.63987767]
[1769002833721,10.50875125,127.27,127.22,0.05516714]
[1769002835530,10.50945125,127.26,127.22,0.05516714]
[1769002835822,3.42975125,127.25,127.2,7.0828]
[1769002836525,10.50985125,127.25,127.2,7.0828]
[1769002836924,0.05575519,127.24,127.21,0.05294064]
[1769002841520,3.48550644,127.24,127.19,16.84379395]
[1769002842928,3.48550644,127.24,127.2,0.05074474]
[1769002845228,3.48550644,127.24,127.2,9.81153869]
[1769002847126,3.01805497,127.23,127.18,14.66416185]
[1769002847327,3.01805497,127.23,127.18,9.81629984]
[1769002847725,3.01805497,127.21,127.18,9.81629984]
[1769002848834,3.01805497,127.21,127.18,9.86884922]
[1769002849132,3.07799355,127.21,127.18,9.86884922]
[1769002849431,0.05993858,127.21,127.18,9.86884922]
[1769002851926,3.07799355,127.21,127.15,21.74926185]
[1769002852233,3.07799355,127.21,127.15,7.0851]
[1769002852737,3.07799355,127.21,127.16,7.085]
[1769002853228,3.07799355,127.21,127.17,0.05235644]
[1769002857334,3.01805497,127.23,127.17,7.13665644]
[1769002857536,3.01805497,127.23,127.17,7.0843]
[1769002858842,3.01805497,127.23,127.19,0.05821942]
[1769002859032,0.05630384,127.21,127.19,0.05821942]
[1769002862928,3.41551334,127.21,127.15,14.66416185]
[1769002863128,3.41551334,127.21,127.14,14.66416185]
[1769002864138,7.0832,127.2,127.14,7.0861]
[1769002865042,10.4424095,127.2,127.14,7.0861]
[1769002865246,3.3592095,127.19,127.14,7.0861]
[1769002866143,3.3592095,127.19,127.12,314.41238489]
[1769002866644,3.3592095,127.19,127.12,299.74822304]
[1769002867041,3.3592095,127.19,127.12,314.44874199]
[1769002867341,3.3592095,127.19,127.13,7.0867]
[1769002868142,0.05068173,127.17,127.15,0.0587226]
[1769002868333,3.3592095,127.19,127.15,0.0587226]
[1769002871143,3.3592095,127.21,127.15,0.0587226]
[1769002871645,0.05035391,127.19,127.16,1.58387274]
[1769002871946,3.3592095,127.23,127.16,1.58387274]
[1769002872945,3.3592095,127.23,127.18,7.13655196]
[1769002873953,3.3592095,127.23,127.19,7.0833]
[1769002874853,1.58387274,127.27,127.2,7.0828]
[1769002875053,1.58387274,127.29,127.2,1.58387274]
[1769002876154,1.58387274,127.31,127.23,7.0811]
[1769002876350,1.58387274,127.31,127.23,7.13604099]
[1769002876648,0.05286819,127.28,127.23,7.0811]
[1769002876954,3.41679168,127.28,127.23,7.0811]
[1769002878158,3.41679168,127.28,127.24,0.05833665]
[1769002880458,3.41679168,127.28,127.24,7.13893665]
[1769002880652,0.05286819,127.28,127.24,7.13893665]
[1769002881562,3.41679168,127.28,127.24,7.13893665]
[1769002884849,3.41679168,127.28,127.24,0.05833665]
[1769002893250,5.00066442,127.28,127.24,0.05833665]
[1769002893561,3.36392349,127.27,127.24,0.05833665]
[1769002895061,3.36392349,127.27,127.22,7.0817]
[1769002895464,3.36392349,127.27,127.23,7.0811]
[1769002896270,3.36392349,127.27,127.24,0.05609599]
[1769002897963,3.36392349,127.29,127.24,7.13659599]
[1769002899965,10.44182349,127.29,127.24,0.05609599]
[1769002900265,3.36392349,127.28,127.24,0.05609599]
[1769002902569,0.05700157,127.27,127.24,0.05609599]
[1769002904766,3.42092506,127.27,127.24,0.05609599]
[1769002916072,3.41347804,127.29,127.24,7.13659599]
[1769002916279,3.41347804,127.29,127.24,1.63835063]
[1769002916476,213.25167969,127.32,127.24,11.42346413]
[1769002916773,1.58225464,127.33,127.24,11.42346413]
[1769002916774,8.65835464,127.33,127.26,7.0794]
[1769002917479,7.0762,127.32,127.28,0.05997021]
[1769002918476,3.35483042,127.31,127.28,0.05997021]
[1769002918867,3.35483042,127.3,127.24,18.44746814]
[1769002919268,3.35483042,127.3,127.24,16.8652135]
[1769002920074,3.35483042,127.3,127.26,0.0543486]
[1769002920574,3.35483042,127.3,127.24,16.8652135]
[1769002920775,3.35483042,127.3,127.23,2.10921388]
[1769002920776,3.4093838,127.29,127.23,9.7851135]
[1769002921081,3.4093838,127.29,127.22,9.7851135]
[1769002921266,3.35483042,127.29,127.22,9.7851135]
[1769002921671,3.35483042,127.27,127.23,7.0812]
[1769002921876,3.411462,127.27,127.24,0.05946959]
[1769002922776,3.411462,127.27,127.22,9.7851135]
[1769002922975,3.411462,127.27,127.24,2.80358076]
[1769002923176,3.411462,127.27,127.22,14.70051895]
[1769002923877,3.35483042,127.26,127.21,14.70051895]
[1769002924075,3.35483042,127.25,127.2,21.78331895]
[1769002924983,3.35483042,127.25,127.2,14.70051895]
[1769002925180,3.40702279,127.24,127.2,14.70051895]
[1769002925371,3.40702279,127.24,127.21,0.05096123]
[1769002927984,3.40702279,127.24,127.19,7.0832]
[1769002929385,3.40702279,127.24,127.2,0.05087379]
[1769002930879,3.35483042,127.26,127.2,0.05087379]
[1769002931876,3.35483042,127.26,127.21,7.0823]
[1769002932080,0.05729759,127.24,127.21,7.0823]
[1769002932497,3.35483042,127.26,127.21,7.0823]
[1769002933785,0.05375034,127.25,127.21,7.0823]
[1769002939489,3.35018398,127.25,127.2,7.13367379]
[1769002940291,3.35018398,127.25,127.21,7.0822]
[1769002941790,3.35018398,127.25,127.2,7.13367379]
[1769002942897,3.35018398,127.25,127.21,7.0821]
[1769002948898,3.35018398,127.25,127.2,0.05087379]
[1769002956113,0.05375034,127.25,127.2,7.13327379]
[1769002956402,3.35018398,127.25,127.2,7.13327379]
[1769002960110,10.43028398,127.25,127.2,0.05087379]
[1769002962310,10.37713364,127.24,127.2,0.05087379]
[1769002963207,10.37713364,127.24,127.2,9.84903005]
[1769002965412,3.29643364,127.24,127.2,9.84903005]
[1769002968912,3.18500875,127.23,127.2,9.84903005]
[1769002969310,3.18500875,127.23,127.19,9.79815626]
[1769002970313,3.18500875,127.23,127.18,9.79815626]
[1769002970619,3.23487026,127.22,127.18,9.79815626]
[1769002971517,3.23487026,127.22,127.19,0.05002688]
[1769002972519,10.31667026,127.22,127.19,0.05002688]
[1769002972722,3.18500875,127.21,127.19,0.05002688]
[1769002972925,3.18500875,127.21,127.17,9.79815626]
[1769002973421,10.26730875,127.21,127.17,9.79815626]
[1769002974121,3.18500875,127.2,127.16,9.79815626]
[1769002974423,3.18500875,127.2,127.15,9.79815626]
[1769002974618,0.04978542,127.19,127.15,9.79815626]
[1769002975326,3.23479417,127.19,127.14,9.79815626]
[1769002975728,3.23479417,127.19,127.16,0.05820227]
[1769002977230,3.23479417,127.19,127.14,9.79815626]
[1769002977820,3.19584114,127.18,127.13,9.79815626]
[1769002978328,3.19584114,127.16,127.11,9.79815626]
[1769002978924,0.04993614,127.15,127.11,9.79815626]
[1769002979127,0.04993614,127.15,127.09,11.9104916]
[1769002979519,3.19584114,127.19,127.11,2.16558982]
[1769002979724,3.19584114,127.19,127.11,11.96374608]
[1769002979926,3.19584114,127.17,127.11,11.9104916]
[1769002980415,3.19584114,127.17,127.11,9.79815626]
[1769002980615,3.19584114,127.17,127.1,9.79815626]
[1769002980816,0.05910678,127.15,127.1,9.79815626]
[1769002981022,0.05910678,127.15,127.1,16.88655626]
[1769002981327,3.25494792,127.15,127.1,9.79815626]
[1769002981535,3.25494792,127.15,127.09,9.79815626]
[1769002982032,10.34064792,127.15,127.09,16.88705626]
[1769002982627,3.25494792,127.15,127.11,0.05042542]
[1769002987018,3.25494792,127.15,127.11,7.13822542]
[1769002987228,0.05910678,127.15,127.11,0.05042542]
[1769002989024,3.25494792,127.15,127.11,0.05042542]
[1769002992935,3.25494792,127.15,127.11,7.13822542]
[1769002993538,3.25494792,127.15,127.11,0.05042542]
[1769002995841,10.34064792,127.15,127.11,0.05042542]
[1769002996030,3.25494792,127.15,127.07,2.11233534]
[1769002996234,3.19584114,127.15,127.07,2.11233534]
[1769002996435,10.3784414,127.14,127.07,9.20183534]
[1769002996737,10.3784414,127.14,127.07,2.11233534]
[1769002997339,0.05058242,127.12,127.07,2.11233534]
[1769002998035,0.05058242,127.12,127.08,7.0893]
[1769002998636,0.05058242,127.12,127.07,2.11233534]
[1769002998834,3.2921414,127.14,127.09,9.20113534]
[1769003000033,0.05208754,127.13,127.09,9.20113534]
[1769003002335,0.05208754,127.13,127.09,7.0888]
[1769003005043,3.34422894,127.13,127.08,7.0895]
[1769003006342,3.2921414,127.1,127.02,9.79815626]
[1769003006647,3.2921414,127.06,126.99,2.11233534]
[1769003007043,0.05587369,127.04,127.01,7.15025255]
[1769003007356,3.2921414,127.06,127.01,7.15025255]
[1769003008335,0.05205066,127.05,127.01,7.15025255]
[1769003009643,0.05205066,127.05,127.01,0.05685255]
[1769003012944,0.05205066,127.05,127.01,7.15025255]
[1769003015440,3.2921414,127.09,127.02,7.0927]
[1769003015646,3.2921414,127.09,127.02,9.20503534]
[1769003015949,3.2921414,127.09,127.02,2.11233534]
[1769003016455,3.2921414,127.09,127.03,7.0923]
[1769003016655,0.0511465,127.07,127.03,7.0923]
[1769003021856,0.0511465,127.07,127.03,9.20463534]
[1769003024261,0.0511465,127.07,127.04,7.0917]
[1769003024562,3.2921414,127.09,127.04,7.14371313]
[1769003025160,3.2921414,127.09,127.05,7.0912]
[1769003025367,3.2921414,127.11,127.05,2.11233534]
[1769003025760,3.43158014,127.13,127.07,9.25731963]
[1769003026060,3.43158014,127.13,127.07,2.16721963]
[1769003026965,3.43158014,127.13,127.08,7.0895]
[1769003027765,3.43158014,127.15,127.09,9.20123534]
[1769003028066,3.43158014,127.15,127.09,2.11233534]
[1769003028259,3.43158014,127.15,127.11,0.06014844]
[1769003033665,3.4887871,127.14,127.08,9.20133534]
[1769003034868,3.4887871,127.14,127.08,7.089]
[1769003035768,0.05720696,127.14,127.1,7.0884]
[1769003036160,3.43158014,127.16,127.1,7.0884]
[1769003036471,0.0545234,127.13,127.1,7.0884]
[1769003036962,0.0545234,127.13,127.09,2.11461247]
[1769003037358,3.48610354,127.13,127.07,2.11461247]
[1769003038869,3.48610354,127.13,127.09,7.089]
[1769003040463,3.48610354,127.13,127.1,0.05382521]
[1769003044268,0.0545234,127.13,127.1,7.14212521]
[1769003047372,3.38376657,127.13,127.1,7.14212521]
[1769003049781,3.38376657,127.13,127.1,0.05382521]
[1769003050077,3.38376657,127.13,127.08,7.089]
[1769003051265,3.38376657,127.13,127.09,0.05093629]
[1769003061387,3.38376657,127.13,127.09,7.13973629]
[1769003063085,0.0545234,127.13,127.09,7.13973629]
[1769003066199,3.5259892,127.13,127.09,7.13973629]
[1769003070200,3.5259892,127.13,127.09,0.05093629]
[1769003078915,3.5259892,127.13,127.09,7.13983629]
[1769003085313,3.5259892,127.13,127.09,16.93799255]
[1769003086308,3.5259892,127.13,127.09,7.13983629]
[1769003089120,3.5259892,127.13,127.09,0.05093629]
[1769003099429,3.5259892,127.13,127.09,7.13993629]
[1769003100330,0.0545234,127.13,127.1,7.0884]
[1769003100528,3.2945332,127.15,127.1,16.88655626]
[1769003100929,3.2945332,127.15,127.1,7.0884]
[1769003101129,3.2945332,127.14,127.09,16.93799255]
[1769003101729,3.34792886,127.13,127.09,16.93799255]
[1769003102621,3.34792886,127.13,127.09,9.84909255]
[1769003102819,3.34792886,127.13,127.1,7.0884]
[1769003103019,2.886e-05,127.13,127.1,7.0884]
[1769003103424,9.19984383,127.17,127.1,7.0884]
[1769003104032,7.0853,127.16,127.1,7.0884]
[1769003104231,2.17138585,127.15,127.09,16.88705626]
[1769003105134,3.2945332,127.14,127.09,16.88705626]
[1769003106635,3.2945332,127.14,127.09,7.0889]
[1769003107237,3.2945332,127.14,127.08,16.88765626]
[1769003107434,3.2945332,127.13,127.08,9.79815626]
[1769003107639,3.2945332,127.13,127.07,9.79815626]
[1769003107840,3.2945332,127.11,127.07,9.79815626]
[1769003109143,3.2945332,127.11,127.08,0.05922326]
[1769003109344,0.05557738,127.12,127.08,0.05922326]
[1769003110034,0.05557738,127.12,127.08,9.85737952]
[1769003112940,3.35011058,127.12,127.08,9.85737952]
[1769003113747,3.35011058,127.12,127.08,0.05922326]
[1769003132671,3.35011058,127.12,127.08,7.14872326]
[1769003133470,3.35011058,127.12,127.08,0.05922326]
[1769003134566,3.35011058,127.12,127.07,2.45358982]
[1769003134767,3.35011058,127.12,127.03,300.87136389]
[1769003134768,3.35011058,127.12,127.04,14.70051895]
[1769003134973,3.35011058,127.12,127.04,18.01188284]
[1769003135270,3.2945332,127.12,127.04,18.01188284]
[1769003135468,3.2945332,127.12,127.05,3.31136389]
[1769003135974,0.05076174,127.1,127.05,10.40246389]
[1769003137271,10.69927463,127.13,127.07,3.31136389]
[1769003137473,3.61217463,127.12,127.07,3.31136389]
[1769003137968,3.61217463,127.11,127.04,14.70051895]
[1769003138163,3.61217463,127.09,127.03,3.31136389]
[1769003138569,0.05448074,127.07,127.05,0.05744259]
[1769003138770,3.66665537,127.07,127.02,303.11461273]
[1769003139865,10.75675537,127.07,127.01,10.40476389]
[1769003140677,10.70287463,127.06,126.99,27.22072667]
[1769003140874,10.70287463,127.06,127.0,3.31136389]
[1769003141073,3.61217463,127.05,126.98,18.01188284]
[1769003141370,3.61217463,127.05,126.98,3.31136389]
[1769003141573,3.61217463,127.03,126.97,21.79621895]
[1769003141782,2.11484383,127.0,126.95,0.81262654]
[1769003141979,2.11484383,127.02,126.93,3.31136389]
[1769003142183,0.05050474,126.99,126.96,0.06009415]
[1769003146192,0.05050474,126.99,126.96,5.57672361]
[1769003146390,7.0928,127.03,126.96,5.57672361]
[1769003146788,7.0928,127.03,126.98,2.11484383]
[1769003146984,110.2947,127.07,126.98,5.51662946]
[1769003147185,110.2947,127.07,127.0,2.11484383]
[1769003147484,0.05459157,127.05,127.0,2.11484383]
[1769003147685,0.05459157,127.05,127.02,0.05645332]
[1769003148191,0.05459157,127.05,127.0,2.11484383]
[1769003148992,7.0919,127.04,127.0,2.11484383]
[1769003152497,7.0919,127.04,127.01,0.05665255]
[1769003152700,7.0919,127.04,126.98,5.51662946]
[1769003153897,0.05507905,127.02,126.98,5.51662946]
[1769003154694,0.05507905,127.02,126.98,2.11484383]
[1769003154885,0.05507905,127.02,126.97,2.11840043]
[1769003155089,0.05507905,127.02,126.97,5.52018606]
[1769003155699,0.05507905,127.02,126.95,5.52018606]
[1769003155886,0.05507905,127.02,126.98,0.05707232]
[1769003156088,0.05507905,127.02,126.95,5.52018606]
[1769003156798,0.05507905,127.02,126.98,3.40178563]
[1769003156997,0.05507905,127.02,126.99,2.11840043]
[1769003157296,0.04954891,127.02,126.99,2.11840043]
[1769003157688,0.04954891,127.02,126.99,2.17192763]
[1769003161100,0.04954891,127.02,126.99,5.84132434]
[1769003162904,0.04954891,127.02,126.99,3.72292391]
[1769003166699,7.092,127.04,126.99,3.72292391]
[1769003166900,7.0912,127.05,127.02,2.11840043]
[1769003168004,7.0912,127.05,127.01,3.66939671]
[1769003168305,7.14564363,127.05,127.01,3.66939671]
[1769003170603,7.14564363,127.05,127.02,0.05084605]
[1769003170806,7.092,127.04,126.99,3.66939671]
[1769003171501,7.092,127.04,126.99,2.11840043]
[1769003171705,7.0912,127.05,127.0,3.66939671]
[1769003172009,0.05098617,127.03,127.0,3.66939671]
[1769003177607,2.11840043,127.08,127.01,3.15006075]
[1769003178513,0.05394513,127.06,127.01,3.15006075]
[1769003179008,0.05394513,127.06,127.02,0.05084416]
[1769003179612,0.05394513,127.06,127.02,3.20090491]
[1769003180513,0.05394513,127.06,127.03,3.15006075]
[1769003192923,0.05394513,127.06,127.02,0.05084416]
[1769003193128,0.05394513,127.06,127.02,3.20090491]
[1769003198329,0.05394513,127.06,127.02,10.29370491]
[1769003198518,7.0896,127.08,127.03,3.15006075]
[1769003199722,0.05643293,127.07,127.03,3.15006075]
[1769003200224,7.14653293,127.07,127.03,3.15006075]
[1769003200918,213.53206403,127.11,127.03,3.15006075]
[1769003201624,7.089,127.09,127.04,3.15006075]
[1769003202027,0.05518664,127.08,127.05,0.05631838]
[1769003203622,7.14498664,127.08,127.02,3.15006075]
[1769003204917,7.14498664,127.08,127.02,10.24286075]
[1769003205121,7.14498664,127.08,127.04,0.06042011]
[1769003206344,0.05518664,127.08,127.04,0.06042011]
[1769003212232,0.05518664,127.08,127.04,3.09716574]
[1769003216027,7.14468664,127.08,127.04,3.09716574]
[1769003217624,7.14468664,127.08,127.04,0.06042011]
[1769003217830,9.20679156,127.07,127.02,3.1011482]
[1769003220643,7.0901,127.07,127.02,3.1011482]
[1769003221841,0.05518664,127.08,127.03,3.1011482]
[1769003222142,2.11669156,127.12,127.04,3.1011482]
[1769003222332,2.11669156,127.12,127.03,2.11669156]
[1769003222333,7.0873,127.12,127.07,3.1011482]
[1769003223340,0.05516905,127.11,127.08,0.05218221]
[1769003228546,0.05516905,127.11,127.08,3.15333041]
[1769003230138,0.05516905,127.11,127.08,0.05218221]
[1769003230530,0.05516905,127.11,127.06,3.1011482]
[1769003231632,0.05516905,127.11,127.07,0.05661092]
[1769003232044,7.0884,127.1,127.07,0.05661092]
[1769003232244,9.20509156,127.1,127.06,3.1011482]
[1769003236237,9.20509156,127.1,127.03,9.74024238]
[1769003236238,7.089,127.09,127.03,9.74024238]
[1769003236440,2.11669156,127.08,127.02,10.38490712]
[1769003236645,0.0510973,127.07,127.02,3.29210712]
[1769003237048,2.11669156,127.06,127.02,3.29210712]
[1769003238950,9.20749156,127.06,127.02,3.29210712]
[1769003239335,9.20749156,127.06,126.98,9.74024238]
[1769003239541,9.20749156,127.06,126.99,3.29210712]
[1769003239848,9.20749156,127.06,127.01,3.34371305]
[1769003240249,2.11669156,127.06,127.01,0.05160593]
[1769003240552,2.11669156,127.04,127.01,0.05160593]
[1769003241047,2.1765515,127.04,127.01,0.05160593]
[1769003241952,9.2684515,127.04,127.01,0.05160593]
[1769003242252,9.2684515,127.04,126.99,3.29210712]
[1769003243041,9.2684515,127.04,126.97,3.29210712]
[1769003243242,9.20859156,127.04,126.97,3.29210712]
[1769003243550,0.0594793,127.02,126.98,3.29210712]
[1769003243745,0.0594793,127.02,126.99,0.05592237]
[1769003247057,0.0594793,127.02,126.99,3.34802949]
[1769003248154,7.1523793,127.02,126.99,3.34802949]
[1769003248752,7.1523793,127.02,126.99,0.05592237]
[1769003249059,0.0594793,127.02,126.99,0.05592237]
[1769003249848,7.0923,127.04,127.0,3.29210712]
[1769003251062,0.05358663,127.03,127.0,3.29210712]
[1769003253164,7.0923,127.04,127.0,3.29210712]
[1769003254364,0.05448194,127.03,127.0,3.29210712]
[1769003256767,7.0913,127.05,127.0,3.29210712]
[1769003257865,0.0557286,127.04,127.0,3.29210712]
[1769003262282,2.17242016,127.04,127.0,3.29210712]
[1769003262488,9.26452016,127.04,126.99,0.05592237]
[1769003263275,9.26452016,127.04,126.99,3.34802949]
[1769003271097,2.17242016,127.04,126.99,3.34802949]